bitfinex-derivatives/quotes_SOLF0:USTF0_20241211
["timestamp","ask_amount","ask_price","bid_price","bid_amount"]
[1733948586299,6.38833409,229.71,229.7,2.1744]
[1733948586701,6.38833409,229.71,229.67,2.0325]
[1733948586996,6.38833409,229.71,229.69,2.1744]
[1733948587600,6.38833409,229.71,229.7,2.1744]
[1733948588201,6.38833409,229.71,229.69,2.1745]
[1733948588400,6.38833409,229.7,229.69,2.1745]
[1733948589404,6.38833409,229.7,229.69,4.69428915]
[1733948590900,2.1738,229.77,229.73,2.1741]
[1733948591101,2.091,229.84,229.74,2.51978915]
[1733948591102,2.22,229.78,229.74,2.51978915]
[1733948591408,6.38833409,229.75,229.68,6.38833409]
[1733948591800,6.38833409,229.75,229.69,2.51799016]
[1733948592106,6.38833409,229.75,229.7,2.51799016]
[1733948592303,6.38833409,229.75,229.71,2.51799016]
[1733948592500,6.38833409,229.75,229.72,2.51799016]
[1733948592804,6.38833409,229.75,229.74,2.174]
[1733948593006,6.38833409,229.75,229.74,4.69199016]
[1733948597507,2.22,229.77,229.75,2.1739]
[1733948597703,6.38833409,229.76,229.75,2.1739]
[1733948597905,6.38833409,229.76,229.75,4.69210819]
[1733948599900,6.38833409,229.76,229.75,2.51820819]
[1733948600503,4.1442,229.87,229.75,2.51820819]
[1733948600801,6.38833409,229.83,229.76,8.90654228]
[1733948601001,2.22,229.86,229.76,6.38833409]
[1733948601201,2.22,229.86,229.8,2.1734]
[1733948601202,6.38833409,229.82,229.8,2.1734]
[1733948601406,6.38833409,229.82,229.81,2.51747006]
[1733948605112,6.38833409,229.84,229.82,2.1733]
[1733948605315,6.38833409,229.84,229.83,2.51747006]
[1733948606714,8.60833409,229.86,229.83,4.69067006]
[1733948606918,8.60833409,229.86,229.84,2.51747006]
[1733948607110,8.60833409,229.86,229.85,2.51747006]
[1733948607311,6.38833409,229.88,229.85,2.51747006]
[1733948607512,6.38833409,229.88,229.86,2.51747006]
[1733948607713,6.38833409,229.88,229.87,2.51747006]
[1733948608014,8.60833409,229.92,229.87,2.51747006]
[1733948608214,6.38833409,229.94,229.88,8.90580415]
[1733948608412,2.22,229.97,229.89,2.51747006]
[1733948608612,6.38833409,229.96,229.9,2.51747006]
[1733948608809,6.38833409,229.96,229.91,2.51747006]
[1733948609011,2.22,230.0,229.92,2.51747006]
[1733948609313,6.38833409,229.97,229.93,2.51747006]
[1733948609617,6.38833409,229.97,229.94,2.51747006]
[1733948609909,6.38833409,229.97,229.9,6.38833409]
[1733948610115,6.38833409,229.97,229.95,2.50580547]
[1733948610315,6.38833409,229.97,229.96,2.50580547]
[1733948610711,6.38833409,229.97,229.87,2.22]
[1733948610913,6.38833409,229.93,229.88,2.50390408]
[1733948611113,6.38833409,229.93,229.89,2.50390408]
[1733948611418,6.38833409,229.93,229.91,2.1724]
[1733948611714,6.38833409,229.93,229.92,2.50390408]
[1733948611915,6.38833409,229.95,229.92,2.50390408]
[1733948612108,6.38833409,229.95,229.93,2.50390408]
[1733948612307,2.1721,229.95,229.91,2.1724]
[1733948612510,6.38833409,229.94,229.92,2.50137173]
[1733948612715,2.22,229.94,229.88,6.38833409]
[1733948612915,2.22,229.94,229.89,2.50189147]
[1733948613120,6.38833409,229.97,229.9,8.89022556]
[1733948613416,6.38833409,229.97,229.91,2.50189147]
[1733948613613,8.56023409,229.97,229.92,2.1723]
[1733948614008,6.38833409,229.97,229.9,6.38833409]
[1733948614212,6.38833409,229.97,229.93,2.1722]
[1733948614813,8.56023409,229.97,229.93,2.1722]
[1733948615920,6.38833409,229.97,229.93,2.1722]
[1733948617318,8.56023409,229.97,229.93,2.1722]
[1733948617712,6.38833409,229.95,229.92,2.1723]
[1733948619420,8.56043409,229.95,229.91,2.1724]
[1733948619615,6.38833409,229.95,229.88,6.38833409]
[1733948619921,6.38833409,229.95,229.89,2.49482308]
[1733948620118,6.38833409,229.95,229.88,6.38833409]
[1733948620318,6.38833409,229.95,229.89,2.49425264]
[1733948620513,6.38833409,229.95,229.92,2.1723]
[1733948620721,2.22,229.98,229.9,6.38833409]
[1733948620917,8.60833409,229.98,229.9,6.38833409]
[1733948621318,8.60833409,229.98,229.94,2.1721]
[1733948622224,10.78013409,229.98,229.94,2.1721]
[1733948622723,10.78013409,229.98,229.9,6.38833409]
[1733948624620,10.78013409,229.98,229.94,2.1721]
[1733948626924,2.1719,229.97,229.9,2.1725]
[1733948627124,6.38833409,229.96,229.89,6.38833409]
[1733948627319,6.38833409,229.94,229.87,8.70833409]
[1733948627524,2.22,229.98,229.94,2.1721]
[1733948627727,8.60833409,229.98,229.94,2.1721]
[1733948627927,6.38833409,229.98,229.94,2.1721]
[1733948628221,8.56013409,229.98,229.94,2.1721]
[1733948628417,5.14389819,230.02,229.93,6.38833409]
[1733948628418,6.38833409,230.02,229.93,6.38833409]
[1733948628623,2.32,230.01,229.93,6.38833409]
[1733948628824,6.38833409,230.0,229.93,6.38833409]
[1733948629626,6.38833409,230.0,229.97,2.1718]
[1733948630919,6.38833409,229.98,229.95,2.172]
[1733948631123,6.38833409,229.95,229.87,6.38833409]
[1733948631423,5.09503035,230.04,229.87,6.38833409]
[1733948631424,8.56063409,229.93,229.89,2.1726]
[1733948632228,6.38833409,229.93,229.87,6.38833409]
[1733948632529,2.1724,229.92,229.87,6.38833409]
[1733948633027,8.56083409,229.91,229.87,2.1728]
[1733948633419,6.38833409,229.91,229.85,8.30423409]
[1733948633923,6.38833409,229.93,229.85,8.30423409]
[1733948634129,6.38833409,229.93,229.87,6.38833409]
[1733948634631,2.32,229.94,229.87,6.38833409]
[1733948634828,6.38833409,229.99,229.91,6.38833409]
[1733948635127,2.32,229.98,229.91,6.38833409]
[1733948635429,4.4918,229.98,229.91,6.38833409]
[1733948635831,4.4918,229.98,229.93,2.1722]
[1733948636420,2.1719,229.97,229.93,2.1722]
[1733948638126,8.56023409,229.97,229.93,2.1722]
[1733948638928,2.1719,229.97,229.91,6.38833409]
[1733948639134,2.1719,229.97,229.94,2.1721]
[1733948640733,2.1719,229.97,229.93,2.1722]
[1733948641832,2.172,229.96,229.92,2.1723]
[1733948642135,2.172,229.96,229.91,6.38833409]
[1733948642325,2.172,229.96,229.92,2.49638045]
[1733948642533,2.172,229.96,229.91,6.38833409]
[1733948642732,2.172,229.96,229.92,2.49656549]
[1733948642931,2.172,229.96,229.91,6.38833409]
[1733948643127,2.1719,229.97,229.93,2.1722]
[1733948643340,2.32,229.98,229.94,2.49649586]
[1733948643633,2.32,229.98,229.96,2.172]
[1733948644427,2.32,229.98,229.94,2.1721]
[1733948644428,8.70833409,229.98,229.94,2.1721]
[1733948644630,8.70833409,229.98,229.95,2.49879321]
[1733948644830,8.70833409,229.98,229.96,2.498912]
[1733948645036,8.70833409,229.98,229.91,6.38833409]
[1733948645235,8.70833409,229.98,229.92,2.49887041]
[1733948645435,8.70833409,229.98,229.93,2.49887041]
[1733948645739,10.88013409,229.98,229.95,2.172]
[1733948645938,10.88013409,229.98,229.96,2.49887041]
[1733948646235,10.88013409,229.98,229.85,5.8502]
[1733948646236,8.70833409,229.98,229.85,5.8502]
[1733948646433,6.38833409,229.94,229.86,2.5021515]
[1733948646734,6.38833409,229.94,229.87,8.89048559]
[1733948646934,6.38833409,229.94,229.88,2.5021515]
[1733948647134,6.38833409,229.94,229.87,6.38833409]
[1733948647135,8.56053409,229.94,229.9,2.1724]
[1733948647334,8.56053409,229.94,229.91,2.5021515]
[1733948647536,8.56053409,229.94,229.92,2.5021515]
[1733948647839,8.56053409,229.94,229.93,2.5021515]
[1733948650137,6.38833409,229.94,229.84,5.27949725]
[1733948650440,2.26,229.93,229.86,6.38833409]
[1733948650639,8.64833409,229.93,229.86,6.38833409]
[1733948650832,8.64833409,229.93,229.9,2.1724]
[1733948652042,2.26,229.93,229.9,2.1724]
[1733948652239,2.26,229.93,229.91,2.1724]
[1733948653045,10.82063409,229.93,229.9,2.1725]
[1733948653546,10.82063409,229.93,229.88,2.1726]
[1733948653547,2.1724,229.92,229.88,2.1726]
[1733948654538,2.1725,229.91,229.88,2.1726]
[1733948655044,8.56083409,229.91,229.88,2.1726]
[1733948657146,6.38833409,229.91,229.84,6.38833409]
[1733948658053,2.1726,229.9,229.86,2.1728]
[1733948658349,2.1726,229.9,229.84,6.38833409]
[1733948658845,2.1726,229.9,229.86,2.1728]
[1733948661141,6.38833409,229.91,229.86,2.1728]
[1733948661342,6.38833409,229.89,229.85,2.173]
[1733948661851,6.38833409,229.89,229.82,6.38833409]
[1733948661852,2.1728,229.87,229.82,6.38833409]
[1733948662251,6.38833409,229.87,229.83,2.48541756]
[1733948662445,6.38833409,229.87,229.84,2.48541756]
[1733948662653,6.38833409,229.87,229.8,10.28883409]
[1733948662654,6.38833409,229.87,229.85,2.48541756]
[1733948662848,6.38833409,229.87,229.86,2.48541756]
[1733948663548,2.26,229.88,229.86,2.48541756]
[1733948663750,4.1134,229.97,229.86,2.48541756]
[1733948663751,4.1134,229.97,229.86,6.38833409]
[1733948663947,2.26,229.94,229.87,2.4842058]
[1733948664156,8.64833409,229.94,229.88,2.4842058]
[1733948664354,8.64833409,229.94,229.89,2.4842058]
[1733948664550,2.26,229.94,229.9,2.48280773]
[1733948664751,8.64833409,229.97,229.91,2.48280773]
[1733948664951,8.64833409,229.97,229.92,2.48280773]
[1733948665253,10.82023409,229.97,229.93,4.65500773]
[1733948665456,10.82023409,229.97,229.94,2.48280773]
[1733948665647,2.26,229.97,229.95,2.48280773]
[1733948665847,2.26,229.97,229.96,2.48280773]
[1733948666450,6.38833409,229.99,229.96,2.48280773]
[1733948666650,6.38833409,230.0,229.92,6.38833409]
[1733948666854,6.38833409,230.02,229.94,6.38833409]
[1733948667052,8.64833409,230.02,229.95,2.48146842]
[1733948667252,8.64833409,230.02,229.97,2.1718]
[1733948667458,8.64833409,230.02,229.98,2.48146842]
[1733948667652,2.0498,230.09,229.91,2.26]
[1733948667653,2.1712,230.05,230.0,2.1716]
[1733948667852,6.38833409,230.03,229.96,6.38833409]
[1733948669458,6.38833409,230.03,229.99,2.1716]
[1733948669759,6.38833409,230.03,230.0,2.47947502]
[1733948669955,6.38833409,230.03,230.01,2.47947502]
[1733948670155,6.38833409,230.03,229.99,2.1716]
[1733948670359,6.38833409,230.03,230.0,2.47841336]
[1733948670561,6.38833409,230.03,230.0,2.1716]
[1733948670753,10.81943409,230.05,230.01,2.47839176]
[1733948670953,6.38833409,230.04,229.96,6.38833409]
[1733948671154,6.38833409,230.04,230.01,2.1715]
[1733948672065,6.38833409,230.04,230.02,2.47736062]
[1733948672260,6.38833409,230.04,230.01,2.1715]
[1733948672461,6.38833409,230.04,230.02,2.47648874]
[1733948672661,6.38833409,230.04,230.01,2.1715]
[1733948672856,6.38833409,230.04,230.02,2.47618783]
[1733948673063,6.38833409,230.04,230.03,2.47618783]
[1733948673362,6.38833409,230.04,230.01,2.1715]
[1733948673559,6.38833409,230.04,230.02,2.47563999]
[1733948673756,6.38833409,230.04,229.99,2.1716]
[1733948674057,6.38833409,230.04,230.0,2.47627689]
[1733948674262,6.38833409,230.04,230.01,2.47627689]
[1733948674558,6.38833409,230.04,230.01,2.1714]
[1733948674766,6.38833409,230.02,229.94,6.38833409]
[1733948674960,6.38833409,230.02,229.96,6.38833409]
[1733948675259,6.38833409,230.02,229.97,2.47515524]
[1733948675454,6.38833409,230.02,229.98,2.47515524]
[1733948675659,6.38833409,230.02,229.99,2.47515524]
[1733948675861,6.38833409,230.02,230.0,2.47515524]
[1733948676060,6.38833409,230.02,229.96,6.38833409]
[1733948676256,6.38833409,230.02,229.97,2.47414675]
[1733948676465,6.38833409,230.02,229.98,2.47414675]
[1733948676662,6.38833409,230.02,229.99,2.47414675]
[1733948676963,6.38833409,230.02,230.0,2.47414675]
[1733948677159,6.38833409,230.02,229.96,6.38833409]
[1733948677360,6.38833409,230.02,229.97,2.47385306]
[1733948677561,6.38833409,230.02,229.99,2.1717]
[1733948677869,6.38833409,230.02,230.0,2.47385306]
[1733948678061,6.38833409,230.02,230.01,2.47385306]
[1733948678365,6.38833409,230.02,229.99,2.1717]
[1733948678557,6.38833409,230.02,230.0,2.47347564]
[1733948678763,6.38833409,230.02,229.96,6.38833409]
[1733948678964,6.38833409,230.04,229.97,2.47362995]
[1733948679258,6.38833409,230.04,230.01,2.1714]
[1733948679663,6.38833409,230.04,229.96,6.38833409]
[1733948679856,6.38833409,230.04,230.01,2.1714]
[1733948680063,6.38833409,230.04,229.96,6.38833409]
[1733948680262,6.38833409,230.04,229.97,2.47249267]
[1733948680566,6.38833409,230.04,229.98,2.47249267]
[1733948680767,6.38833409,230.04,230.01,2.1714]
[1733948681165,2.1711,230.05,230.01,2.1714]
[1733948681468,2.1711,230.05,229.96,2.22]
[1733948681469,6.38833409,230.07,230.0,6.38833409]
[1733948682063,6.38833409,230.07,230.02,2.1714]
[1733948682270,6.38833409,230.07,230.0,6.38833409]
[1733948682763,6.38833409,230.07,230.04,2.1712]
[1733948682969,6.38833409,230.05,229.98,6.38833409]
[1733948683369,6.38833409,230.05,229.99,2.47177368]
[1733948683664,6.38833409,230.05,230.03,2.1713]
[1733948684667,4.2698,230.09,229.96,2.22]
[1733948684668,8.55923409,230.07,230.0,6.38833409]
[1733948684866,6.38833409,230.07,230.0,6.38833409]
[1733948685068,6.38833409,230.07,230.01,2.47077817]
[1733948685268,2.22,230.09,230.0,6.38833409]
[1733948685471,10.77913409,230.09,230.02,6.38833409]
[1733948686370,8.55913409,230.09,230.02,6.38833409]
[1733948686971,8.55913409,230.09,230.03,2.47011352]
[1733948687172,8.55913409,230.09,230.02,6.38833409]
[1733948687771,8.55913409,230.09,229.96,2.22]
[1733948687772,6.38833409,230.07,230.0,6.38833409]
[1733948687972,6.38833409,230.07,230.01,2.46971849]
[1733948688170,6.38833409,230.07,230.05,2.1711]
[1733948689775,2.22,230.09,230.0,6.38833409]
[1733948689971,2.22,230.09,230.07,2.1709]
[1733948690171,8.60833409,230.09,230.07,2.1709]
[1733948690979,10.77913409,230.09,230.05,2.171]
[1733948691173,6.38833409,230.07,230.05,2.171]
[1733948691373,6.38833409,230.07,230.0,6.38833409]
[1733948691577,6.38833409,230.05,229.98,8.60833409]
[1733948691879,6.38833409,230.05,229.99,2.46902242]
[1733948692080,8.55943409,230.05,230.02,2.1713]
[1733948692270,2.22,230.09,230.02,6.38833409]
[1733948692469,8.60833409,230.09,230.02,6.38833409]
[1733948692671,6.38833409,230.07,230.04,2.1712]
[1733948692974,6.38833409,230.07,230.0,6.38833409]
[1733948693772,2.1711,230.06,230.02,2.1713]
[1733948694582,6.38833409,230.05,230.02,2.1713]
[1733948694878,6.38833409,230.03,229.98,6.38833409]
[1733948695079,6.38833409,230.05,229.99,2.46981649]
[1733948695382,6.38833409,230.05,230.0,2.1716]
[1733948695680,6.38833409,230.06,229.98,6.38833409]
[1733948695874,6.38833409,230.06,230.0,6.38833409]
[1733948696077,2.1709,230.07,230.04,2.1712]
[1733948696274,6.38833409,230.08,230.02,6.38833409]
[1733948696678,2.22,230.09,230.02,6.38833409]
[1733948696885,6.38833409,230.08,230.02,6.38833409]
[1733948697682,6.38833409,230.08,230.06,2.171]
[1733948698484,8.55903409,230.1,230.06,2.171]
[1733948698684,8.55903409,230.1,230.02,6.38833409]
[1733948698878,8.55903409,230.1,230.03,2.46843037]
[1733948699186,8.55903409,230.1,230.04,2.46843037]
[1733948699382,8.55903409,230.1,230.06,2.171]
[1733948700485,2.1705,230.12,230.06,6.38833409]
[1733948700784,2.22,230.14,230.1,2.1706]
[1733948700982,8.60833409,230.14,230.1,2.1706]
[1733948701180,6.38833409,230.14,230.1,2.1706]
[1733948701380,8.55863409,230.14,230.1,2.1706]
[1733948701984,2.1704,230.13,230.1,2.1706]
[1733948703382,10.77853409,230.15,230.08,6.38833409]
[1733948704085,2.1703,230.14,230.11,2.1705]
[1733948705889,2.1703,230.14,230.08,6.38833409]
[1733948705890,1.8765,230.23,230.12,6.38833409]
[1733948706091,6.38833409,230.21,230.04,2.22]
[1733948706385,6.38833409,230.19,230.04,2.22]
[1733948706586,8.60833409,230.19,230.12,6.38833409]
[1733948706788,8.60833409,230.19,230.13,2.46848679]
[1733948706983,2.17,230.17,230.11,6.38833409]
[1733948707192,2.17,230.17,230.12,2.46813382]
[1733948707382,8.55833409,230.17,230.13,2.46813382]
[1733948707582,8.55833409,230.17,230.11,6.38833409]
[1733948707783,8.55833409,230.17,230.12,2.47007194]
[1733948707993,8.55833409,230.17,230.13,2.47007194]
[1733948708292,8.55833409,230.17,230.14,2.47128787]
[1733948708493,8.55833409,230.17,230.11,6.38833409]
[1733948708792,8.55833409,230.17,230.13,2.1703]
[1733948708994,8.55833409,230.17,230.14,2.47123565]
[1733948709293,8.55833409,230.17,230.13,2.1703]
[1733948709495,8.55833409,230.17,230.14,2.47258441]
[1733948709794,8.55833409,230.17,230.13,2.1703]
[1733948709992,8.55833409,230.17,230.14,2.47266153]
[1733948710187,8.55833409,230.17,230.13,2.1703]
[1733948710496,2.17,230.17,230.14,2.4727764]
[1733948710791,2.17,230.17,230.13,2.1703]
[1733948710984,2.17,230.17,230.14,2.47280466]
[1733948711183,2.17,230.17,230.13,2.1703]
[1733948711388,2.17,230.17,230.14,2.47285306]
[1733948711588,2.17,230.17,230.13,2.1703]
[1733948711792,2.17,230.17,230.14,2.47291784]
[1733948711984,2.17,230.17,230.13,2.1703]
[1733948712186,2.17,230.17,230.14,2.47249607]
[1733948712389,2.17,230.17,230.13,2.1703]
[1733948712594,2.17,230.17,230.14,2.47296018]
[1733948712796,4.3899,230.19,230.13,2.1703]
[1733948713001,8.60833409,230.19,230.14,2.47295576]
[1733948713199,8.60833409,230.19,230.13,2.1703]
[1733948713402,8.60833409,230.19,230.14,2.47259283]
[1733948713596,8.60833409,230.19,230.13,2.1703]
[1733948713797,8.60833409,230.19,230.14,2.47244845]
[1733948713997,8.60833409,230.19,230.13,2.1703]
[1733948714197,8.60833409,230.19,230.14,2.47200031]
[1733948714391,8.60833409,230.19,230.13,2.1703]
[1733948714596,2.1699,230.18,230.13,2.1703]
[1733948715095,8.60833409,230.19,230.14,2.1702]
[1733948715400,2.1698,230.19,230.13,6.38833409]
[1733948715603,2.1698,230.19,230.14,2.47181502]
[1733948715897,10.83793409,230.22,230.17,2.17]
[1733948716395,8.55793409,230.22,230.18,2.1699]
[1733948716900,2.1691,230.27,230.2,2.1697]
[1733948717104,8.66833409,230.26,230.2,2.1697]
[1733948718104,2.1694,230.24,230.2,2.1697]
[1733948718604,2.1694,230.23,230.19,8.55813409]
[1733948718803,2.1694,230.23,230.19,2.1698]
[1733948719209,6.38833409,230.2,230.12,6.38833409]
[1733948719410,6.38833409,230.2,230.13,2.46860031]
[1733948719612,6.38833409,230.2,230.14,2.46860031]
[1733948719811,6.38833409,230.2,230.15,2.46860031]
[1733948720113,5.09030205,230.28,230.1,4.1409]
[1733948720114,6.38833409,230.18,230.1,4.1409]
[1733948720306,6.38833409,230.18,230.11,8.85719106]
[1733948720506,6.38833409,230.18,230.12,2.46885697]
[1733948720807,6.38833409,230.18,230.13,2.46885697]
[1733948721009,2.17,230.17,230.14,2.46885697]
[1733948721203,6.38833409,230.16,230.13,2.1703]
[1733948721404,6.38833409,230.16,230.1,2.0635]
[1733948721603,2.28,230.21,230.13,6.38833409]
[1733948721804,8.66833409,230.21,230.15,6.38833409]
[1733948722209,6.38833409,230.23,230.19,2.1697]
[1733948722415,6.38833409,230.23,230.15,6.38833409]
[1733948722620,6.38833409,230.23,230.16,2.46796855]
[1733948722913,8.55783409,230.23,230.19,2.1698]
[1733948723416,2.1695,230.23,230.19,2.1698]
[1733948724008,8.55763409,230.25,230.19,2.1697]
[1733948724316,6.38833409,230.25,230.19,6.38833409]
[1733948725712,8.55753409,230.25,230.21,2.1695]
[1733948726318,2.1692,230.25,230.21,2.1695]
[1733948726515,8.55753409,230.25,230.21,2.1695]
[1733948727414,8.55753409,230.25,230.22,2.1695]
[1733948728016,8.55753409,230.25,230.19,6.38833409]
[1733948728219,6.38833409,230.25,230.2,2.1696]
[1733948728414,2.1693,230.24,230.2,2.1696]
[1733948728618,2.1693,230.24,230.19,6.38833409]
[1733948729214,2.1693,230.24,230.17,6.38833409]
[1733948729415,2.1693,230.24,230.18,2.46547084]
[1733948729617,2.1693,230.24,230.17,6.38833409]
[1733948730017,2.1693,230.24,230.2,2.1696]
[1733948731220,2.1692,230.26,230.19,6.38833409]
[1733948731425,2.1692,230.26,230.21,6.38833409]
[1733948731621,1.9775,230.31,230.23,6.38833409]
[1733948731815,2.1689,230.29,230.23,6.38833409]
[1733948732924,2.1689,230.29,230.25,2.1691]
[1733948734026,2.28,230.31,230.21,6.38833409]
[1733948734027,8.55733409,230.28,230.21,6.38833409]
[1733948734326,8.55733409,230.28,230.23,2.1693]
[1733948734519,8.55733409,230.28,230.21,6.38833409]
[1733948734818,2.1692,230.25,230.18,5.8821]
[1733948735026,6.38833409,230.26,230.18,5.8821]
[1733948735222,6.38833409,230.26,230.18,12.27043409]
[1733948735523,6.38833409,230.26,230.18,10.21633409]
[1733948735818,2.1692,230.25,230.18,10.21633409]
[1733948736021,6.38833409,230.24,230.18,3.828]
[1733948736220,2.1694,230.23,230.18,3.828]
[1733948737825,2.1694,230.23,230.2,2.1697]
[1733948738022,2.1694,230.23,230.18,3.828]
[1733948739619,2.1694,230.23,230.2,2.1697]
[1733948740729,2.1694,230.23,230.19,2.1698]
[1733948741124,8.55793409,230.22,230.15,6.38833409]
[1733948741325,6.38833409,230.22,230.18,2.1699]
[1733948742127,2.1697,230.2,230.17,2.1699]
[1733948742421,6.38833409,230.2,230.13,6.38833409]
[1733948742627,6.38833409,230.2,230.14,2.47160236]
[1733948742823,2.1698,230.19,230.16,2.1701]
[1733948743123,2.1698,230.19,230.15,2.47160236]
[1733948743124,6.38833409,230.23,230.15,6.38833409]
[1733948743329,6.38833409,230.23,230.16,2.47198172]
[1733948743622,6.38833409,230.23,230.17,2.47198172]
[1733948743826,6.38833409,230.23,230.18,2.47198172]
[1733948744030,8.55793409,230.21,230.15,6.38833409]
[1733948744228,8.55793409,230.21,230.16,2.47399079]
[1733948744529,8.55793409,230.21,230.17,2.47399079]
[1733948744727,8.55793409,230.21,230.18,2.47399079]
[1733948744925,8.55793409,230.21,230.17,2.1699]
[1733948745125,2.1696,230.21,230.18,4.6440172]
[1733948745325,2.1696,230.21,230.19,2.4741172]
[1733948745525,2.1695,230.22,230.18,2.1699]
[1733948745727,2.1695,230.22,230.19,2.47414833]
[1733948746028,2.1695,230.22,230.18,2.1699]
[1733948746223,2.1695,230.22,230.19,2.47428924]
[1733948746430,2.1695,230.22,230.18,2.1699]
[1733948746625,2.1695,230.22,230.19,2.47457039]
[1733948746821,2.28,230.25,230.11,2.0637]
[1733948746822,6.38833409,230.21,230.11,2.0637]
[1733948747028,6.38833409,230.19,230.12,8.86348343]
[1733948747226,6.38833409,230.19,230.13,2.47514934]
[1733948747420,2.17,230.18,230.14,2.47514934]
[1733948747623,2.17,230.18,230.15,2.47514934]
[1733948747823,6.38833409,230.19,230.16,2.47514934]
[1733948748130,6.38833409,230.19,230.17,2.47514934]
[1733948748330,6.38833409,230.2,230.15,2.1701]
[1733948748533,6.38833409,230.22,230.16,2.47622049]
[1733948748830,6.38833409,230.22,230.17,2.47622049]
[1733948749024,6.38833409,230.22,230.18,4.64612049]
[1733948749228,6.38833409,230.23,230.16,6.38833409]
[1733948749424,6.38833409,230.23,230.17,2.47687374]
[1733948749625,6.38833409,230.23,230.18,2.47687374]
[1733948749930,6.38833409,230.23,230.19,2.47653719]
[1733948750129,6.38833409,230.23,230.18,2.1699]
[1733948750334,6.38833409,230.23,230.19,2.4772254]
[1733948750532,6.38833409,230.23,230.2,2.47718881]
[1733948750732,6.38833409,230.23,230.19,2.1698]
[1733948750931,6.38833409,230.23,230.2,2.47714119]
[1733948751227,6.38833409,230.23,230.19,2.1698]
[1733948751426,2.28,230.25,230.2,2.47749756]
[1733948751631,2.28,230.25,230.21,2.1695]
[1733948751632,6.38833409,230.23,230.21,2.1695]
[1733948752532,6.38833409,230.23,230.16,6.38833409]
[1733948752732,8.66833409,230.25,230.22,2.1695]
[1733948754222,8.66833409,230.25,230.15,2.22]
[1733948754223,4.389,230.28,230.24,2.1693]
[1733948754429,6.38833409,230.27,230.2,6.38833409]
[1733948754630,6.38833409,230.27,230.21,2.47719289]
[1733948754831,6.38833409,230.27,230.22,2.47719289]
[1733948755029,6.38833409,230.27,230.24,2.1692]
[1733948755427,6.38833409,230.27,230.2,6.38833409]
[1733948755631,6.38833409,230.27,230.24,2.1693]
[1733948755832,6.38833409,230.25,230.24,2.1693]
[1733948756223,6.38833409,230.25,230.24,4.64693268]
[1733948756433,8.55753409,230.25,230.24,2.47763268]
[1733948756729,2.22,230.28,230.24,2.47763486]
[1733948756935,8.60833409,230.28,230.21,6.38833409]
[1733948757129,8.60833409,230.28,230.22,2.47811349]
[1733948757331,8.60833409,230.28,230.23,2.47811349]
[1733948757532,8.60833409,230.28,230.24,2.47811349]
[1733948757734,8.60833409,230.28,230.25,4.64731349]
[1733948757928,8.60833409,230.28,230.25,2.1692]
[1733948758135,6.38833409,230.28,230.26,2.47793849]
[1733948758333,6.38833409,230.28,230.21,6.38833409]
[1733948758533,6.38833409,230.28,230.22,2.47796489]
[1733948758837,6.38833409,230.28,230.25,2.1692]
[1733948759034,6.38833409,230.28,230.26,2.47796489]
[1733948759233,6.38833409,230.28,230.25,2.1692]
[1733948759429,6.38833409,230.28,230.26,2.47840689]
[1733948759733,6.38833409,230.28,230.14,2.22]
[1733948759926,6.38833409,230.23,230.18,2.1699]
[1733948760127,6.38833409,230.23,230.19,2.48036379]
[1733948760330,4.3893,230.24,230.2,2.48036379]
[1733948760527,4.3893,230.24,230.21,2.48036379]
[1733948760733,6.38833409,230.23,230.22,2.48036379]
[1733948761337,8.55773409,230.23,230.22,2.48036379]
[1733948762037,8.55773409,230.23,230.16,6.38833409]
[1733948762237,8.55773409,230.23,230.17,2.48107556]
[1733948762534,8.55773409,230.23,230.18,2.48107556]
[1733948762730,8.55773409,230.23,230.19,4.65087556]
[1733948763038,8.55773409,230.23,230.2,2.48107556]
[1733948763234,8.55773409,230.23,230.21,2.48107556]
[1733948763435,6.38833409,230.23,230.22,2.48107556]
[1733948764343,8.55773409,230.23,230.22,2.48107556]
[1733948765335,243.30826344,230.53,230.19,6.38833409]
[1733948765644,243.30826344,230.53,230.18,2.22]
[1733948765645,6.38833409,230.36,230.27,6.38833409]
[1733948765835,6.38833409,230.36,230.29,6.38833409]
[1733948766133,2.22,230.37,230.3,2.47900687]
[1733948766340,2.22,230.37,230.31,2.47900687]
[1733948766541,6.38833409,230.38,230.29,6.38833409]
[1733948766735,8.60833409,230.38,230.3,2.47776891]
[1733948766935,2.22,230.38,230.31,2.47776891]
[1733948767139,6.38833409,230.36,230.32,2.47776891]
[1733948767340,6.38833409,230.34,230.27,6.38833409]
[1733948767540,2.22,230.38,230.28,2.47640158]